[Event "*** Titled Tuesday 3|2 Blitz (Late)"]
[Site "Chess.com"]
[Date "2016.11.01"]
[Round "2"]
[White "TheSovietChess"]
[Black "BillieKimbah"]
[Result "1-0"]
[WhiteElo "2522"]
[BlackElo "2620"]
[TimeControl "180+2"]
[EndTime "17:21:01 PDT"]
[Termination "TheSovietChess won by resignation"]

1. d4 {[%clk 0:03:02]} 1... Nf6 {[%clk 0:02:59.6]} 2. c4 {[%clk 0:03:03.6]} 2...
e6 {[%clk 0:03:00.4]} 3. Nc3 {[%clk 0:03:05.1]} 3... Bb4 {[%clk 0:03:00.8]} 4.
Qc2 {[%clk 0:03:06.6]} 4... d5 {[%clk 0:03:00.9]} 5. e3 {[%clk 0:03:06.9]} 5...
O-O {[%clk 0:02:59.5]} 6. Nf3 {[%clk 0:03:08.1]} 6... b6 {[%clk 0:02:47]} 7.
cxd5 {[%clk 0:03:08.2]} 7... exd5 {[%clk 0:02:47.5]} 8. Bd2 {[%clk 0:03:08.7]}
8... a6 {[%clk 0:02:43.4]} 9. Bd3 {[%clk 0:03:09.4]} 9... Bb7 {[%clk 0:02:41.7]}
10. O-O {[%clk 0:03:09.4]} 10... Bd6 {[%clk 0:02:39]} 11. Rac1 {[%clk
0:03:08.8]} 11... Nbd7 {[%clk 0:02:38.8]} 12. Rfe1 {[%clk 0:03:10.2]} 12... Re8
{[%clk 0:02:38.8]} 13. e4 {[%clk 0:03:11.2]} 13... dxe4 {[%clk 0:02:38.8]} 14.
Nxe4 {[%clk 0:03:13]} 14... Nxe4 {[%clk 0:02:28]} 15. Bxe4 {[%clk 0:03:13.2]}
15... Bxe4 {[%clk 0:02:27.7]} 16. Rxe4 {[%clk 0:03:13.3]} 16... Nf6 {[%clk
0:02:20.8]} 17. Ree1 {[%clk 0:03:13.4]} 17... h6 {[%clk 0:02:19.1]} 18. Qc6
{[%clk 0:03:13.4]} 18... Qd7 {[%clk 0:02:12.3]} 19. Qxd7 {[%clk 0:03:13.6]}
19... Nxd7 {[%clk 0:02:13.7]} 20. Nh4 {[%clk 0:03:13.7]} 20... Nf6 {[%clk
0:02:01.2]} 21. Nf5 {[%clk 0:03:14.2]} 21... Rxe1+ {[%clk 0:01:55]} 22. Rxe1
{[%clk 0:03:14.6]} 22... Rd8 {[%clk 0:01:56.1]} 23. g3 {[%clk 0:03:15.2]} 23...
Nd5 {[%clk 0:01:56]} 24. Kg2 {[%clk 0:03:15.5]} 24... h5 {[%clk 0:01:50.4]} 25.
a3 {[%clk 0:03:15.9]} 25... Bf8 {[%clk 0:01:39.4]} 26. Ne3 {[%clk 0:03:15.4]}
26... Nf6 {[%clk 0:01:37.9]} 27. Nf5 {[%clk 0:03:16.1]} 27... g6 {[%clk
0:01:37.1]} 28. Bg5 {[%clk 0:03:15.9]} 28... Re8 {[%clk 0:01:33.2]} 29. Re3
{[%clk 0:03:16]} 29... Rxe3 {[%clk 0:01:28.8]} 30. Nxe3 {[%clk 0:03:15.9]} 30...
Ne4 {[%clk 0:01:20.9]} 31. Bd8 {[%clk 0:03:15.6]} 31... Bd6 {[%clk 0:01:19]} 32.
Nd5 {[%clk 0:03:16.1]} 32... c5 {[%clk 0:01:09.6]} 33. f3 {[%clk 0:03:16.6]}
33... Nd2 {[%clk 0:01:10.1]} 34. Bxb6 {[%clk 0:03:17.3]} 34... cxd4 {[%clk
0:01:05.5]} 35. Bxd4 {[%clk 0:03:17.5]} 35... Nc4 {[%clk 0:01:07.1]} 36. Bf6
{[%clk 0:03:17.7]} 36... Kf8 {[%clk 0:01:06.2]} 37. Bc3 {[%clk 0:03:01.2]} 37...
Ke8 {[%clk 0:01:06.2]} 38. f4 {[%clk 0:03:01.9]} 38... Kd7 {[%clk 0:01:06]} 39.
Kf3 {[%clk 0:03:02.5]} 39... Ke6 {[%clk 0:01:03.9]} 40. Ke4 {[%clk 0:03:03.2]}
40... Bb8 {[%clk 0:00:52.9]} 41. Nb4 {[%clk 0:03:03.7]} 41... Nd6+ {[%clk
0:00:44.2]} 42. Kf3 {[%clk 0:03:04.4]} 42... Nb5 {[%clk 0:00:30.4]} 43. Nxa6
{[%clk 0:03:05.1]} 43... Bd6 {[%clk 0:00:31.4]} 44. Bg7 {[%clk 0:03:05.4]} 44...
Kd5 {[%clk 0:00:31.6]} 45. Nb4+ {[%clk 0:03:05.8]} 45... Kc4 {[%clk 0:00:32.2]}
46. Nc6 {[%clk 0:03:06.7]} 46... Kd5 {[%clk 0:00:26.6]} 47. Nd8 {[%clk
0:03:07.4]} 47... f5 {[%clk 0:00:26.9]} 48. a4 {[%clk 0:03:08]} 48... Nc7 {[%clk
0:00:27.8]} 49. Bc3 {[%clk 0:03:08.2]} 49... Be7 {[%clk 0:00:27.5]} 50. Nf7
{[%clk 0:03:08]} 50... Ke6 {[%clk 0:00:27.9]} 51. Ng5+ {[%clk 0:03:09.4]} 51...
Kd7 {[%clk 0:00:29.1]} 52. Nf7 {[%clk 0:03:10.4]} 52... Ke6 {[%clk 0:00:30]} 53.
Ne5 {[%clk 0:03:11.8]} 53... g5 {[%clk 0:00:30.3]} 54. fxg5 {[%clk 0:03:12.6]}
54... Bxg5 {[%clk 0:00:30.9]} 55. b4 {[%clk 0:03:14]} 55... h4 {[%clk
0:00:31.9]} 56. Nc6 {[%clk 0:03:14.6]} 56... hxg3 {[%clk 0:00:32.3]} 57. hxg3
{[%clk 0:03:15.5]} 57... f4 {[%clk 0:00:32.6]} 58. Be5 {[%clk 0:03:15.7]} 58...
Nd5 {[%clk 0:00:31.3]} 59. gxf4 {[%clk 0:03:16.2]} 59... Bh4 {[%clk 0:00:31.5]}
60. b5 {[%clk 0:03:16.8]} 60... Kd7 {[%clk 0:00:32.3]} 61. a5 {[%clk 0:03:17.5]}
61... Be1 {[%clk 0:00:15.6]} 62. a6 {[%clk 0:03:18.3]} 1-0

[Event "*** Titled Tuesday 3|2 Blitz (Late)"]
[Site "Chess.com"]
[Date "2016.11.01"]
[Round "2"]
[White "DanielNaroditsky"]
[Black "RobertoJBM"]
[Result "1-0"]
[WhiteElo "2735"]
[BlackElo "2539"]
[TimeControl "180+2"]
[EndTime "17:21:08 PDT"]
[Termination "DanielNaroditsky won by resignation"]

1. d4 {[%clk 0:03:02]} 1... d5 {[%clk 0:02:59.9]} 2. Bf4 {[%clk 0:03:01.9]} 2...
Nf6 {[%clk 0:02:58.3]} 3. e3 {[%clk 0:03:03.2]} 3... c5 {[%clk 0:02:58.5]} 4.
dxc5 {[%clk 0:03:05.1]} 4... Qa5+ {[%clk 0:02:56.9]} 5. Nc3 {[%clk 0:02:49.9]}
5... Qxc5 {[%clk 0:02:46.1]} 6. Bxb8 {[%clk 0:02:50.4]} 6... Rxb8 {[%clk
0:02:46.5]} 7. Bb5+ {[%clk 0:02:52.3]} 7... Bd7 {[%clk 0:02:45]} 8. Bxd7+ {[%clk
0:02:53.3]} 8... Kxd7 {[%clk 0:02:46.9]} 9. Nf3 {[%clk 0:02:52.9]} 9... e6
{[%clk 0:02:48.1]} 10. e4 {[%clk 0:02:51.6]} 10... Rd8 {[%clk 0:02:40.4]} 11.
O-O {[%clk 0:02:33.7]} 11... Kc8 {[%clk 0:02:35.5]} 12. Qe2 {[%clk 0:02:35.3]}
12... dxe4 {[%clk 0:02:33.5]} 13. Nxe4 {[%clk 0:02:37.2]} 13... Nxe4 {[%clk
0:02:33.4]} 14. Qxe4 {[%clk 0:02:39.1]} 14... Bd6 {[%clk 0:02:32.6]} 15. a4
{[%clk 0:02:37.2]} 15... Bc7 {[%clk 0:02:31.7]} 16. Ra3 {[%clk 0:02:36.9]} 16...
Qd5 {[%clk 0:02:32.9]} 17. Qe2 {[%clk 0:02:22.7]} 17... Kb8 {[%clk 0:02:30.7]}
18. Rb3 {[%clk 0:02:23.3]} 18... Rhe8 {[%clk 0:02:25.5]} 19. Rb5 {[%clk
0:02:20.2]} 19... Qc6 {[%clk 0:02:21.6]} 20. Ne5 {[%clk 0:02:21.4]} 20... Qd6
{[%clk 0:02:08.5]} 21. Qf3 {[%clk 0:01:55]} 21... Qa6 {[%clk 0:01:53.1]} 22.
Nc6+ {[%clk 0:01:52.6]} 22... Kc8 {[%clk 0:01:52.1]} 23. Nxd8 {[%clk 0:01:52.8]}
23... Rxd8 {[%clk 0:01:54]} 24. Qxf7 {[%clk 0:01:51.2]} 24... Qxa4 {[%clk
0:01:54.8]} 25. Qxe6+ {[%clk 0:01:43.4]} 25... Kb8 {[%clk 0:01:55.2]} 26. Qb3
{[%clk 0:01:45.1]} 26... Qa6 {[%clk 0:01:53.9]} 27. g3 {[%clk 0:01:46.2]} 27...
Qc6 {[%clk 0:01:54.1]} 28. Re1 {[%clk 0:01:40.1]} 28... Bb6 {[%clk 0:01:54.7]}
29. Rbe5 {[%clk 0:01:22.6]} 29... Qf6 {[%clk 0:01:39.7]} 30. R5e2 {[%clk
0:01:15.5]} 30... Rf8 {[%clk 0:01:39.8]} 31. Rf1 {[%clk 0:01:11.3]} 31... h5
{[%clk 0:01:32.5]} 32. Qe6 {[%clk 0:01:10.9]} 32... Qf3 {[%clk 0:01:14.9]} 33.
Qe4 {[%clk 0:01:05.6]} 33... Qf7 {[%clk 0:01:07.2]} 34. Qe5+ {[%clk 0:01:06.8]}
34... Ka8 {[%clk 0:01:06.4]} 35. Qe6 {[%clk 0:01:05.1]} 35... Qf3 {[%clk
0:01:05.6]} 36. Qe8+ {[%clk 0:01:05.9]} 36... Bd8 {[%clk 0:01:06]} 37. Qe4
{[%clk 0:01:04]} 37... Qf7 {[%clk 0:01:02.6]} 38. Rd1 {[%clk 0:01:02.9]} 38...
Bb6 {[%clk 0:01:02.9]} 39. Kg2 {[%clk 0:01:02.3]} 39... a6 {[%clk 0:01:03.6]}
40. Rd6 {[%clk 0:01:00.6]} 40... Ka7 {[%clk 0:01:03.3]} 41. Re6 {[%clk
0:00:57.4]} 41... Qf5 {[%clk 0:00:43.9]} 42. Qxf5 {[%clk 0:00:56.8]} 42... Rxf5
{[%clk 0:00:45.8]} 43. R6e5 {[%clk 0:00:56.8]} 1-0

[Event "*** Titled Tuesday 3|2 Blitz (Late)"]
[Site "Chess.com"]
[Date "2016.11.01"]
[Round "2"]
[White "cheese111"]
[Black "attack2mateU"]
[Result "0-1"]
[WhiteElo "2246"]
[BlackElo "2446"]
[TimeControl "180+2"]
[EndTime "17:21:10 PDT"]
[Termination "attack2mateU won on time"]

1. e4 {[%clk 0:03:02]} 1... c5 {[%clk 0:03:00.5]} 2. Nf3 {[%clk 0:03:02.9]} 2...
d6 {[%clk 0:03:01.4]} 3. Bb5+ {[%clk 0:03:04]} 3... Nd7 {[%clk 0:03:02.1]} 4.
O-O {[%clk 0:03:02.4]} 4... a6 {[%clk 0:03:02.2]} 5. Bd3 {[%clk 0:03:02.9]} 5...
Ngf6 {[%clk 0:03:02.5]} 6. Re1 {[%clk 0:03:03.9]} 6... b5 {[%clk 0:02:59]} 7. c4
{[%clk 0:03:04.6]} 7... g5 {[%clk 0:02:59.7]} 8. Nxg5 {[%clk 0:03:02.2]} 8...
Ne5 {[%clk 0:03:00.4]} 9. Bf1 {[%clk 0:02:14.1]} 9... bxc4 {[%clk 0:03:00.2]}
10. d4 {[%clk 0:02:12.2]} 10... cxd3 {[%clk 0:02:49.1]} 11. f4 {[%clk
0:02:09.9]} 11... Ng6 {[%clk 0:02:22.8]} 12. Bxd3 {[%clk 0:00:53.2]} 12... Bh6
{[%clk 0:02:20.8]} 13. Qf3 {[%clk 0:00:26.5]} 13... Bxg5 {[%clk 0:02:08.8]} 14.
fxg5 {[%clk 0:00:27]} 14... Ng4 {[%clk 0:01:51.8]} 15. e5 {[%clk 0:00:24.4]}
15... N4xe5 {[%clk 0:01:42.1]} 16. Qxa8 {[%clk 0:00:24.1]} 16... Nxd3 {[%clk
0:01:42.8]} 17. Rd1 {[%clk 0:00:22.6]} 17... Nxc1 {[%clk 0:01:20.6]} 18. Rxc1
{[%clk 0:00:23.4]} 18... O-O {[%clk 0:01:21.9]} 19. Nc3 {[%clk 0:00:22.8]} 19...
Qb6 {[%clk 0:01:04.4]} 20. Qe4 {[%clk 0:00:11.1]} 20... Bb7 {[%clk 0:00:54.6]}
21. Qe2 {[%clk 0:00:10.9]} 21... Nf4 {[%clk 0:00:53.4]} 22. Qf2 {[%clk 0:00:11]}
22... Qc6 {[%clk 0:00:41.7]} 23. Qf3 {[%clk 0:00:06.4]} 23... Qxf3 {[%clk
0:00:25.5]} 24. gxf3 {[%clk 0:00:08.3]} 24... Bxf3 {[%clk 0:00:26.7]} 25. Kf2
{[%clk 0:00:04.8]} 25... Bb7 {[%clk 0:00:25.5]} 26. Kg3 {[%clk 0:00:04.9]} 26...
e5 {[%clk 0:00:21]} 27. Re1 {[%clk 0:00:02.2]} 27... f6 {[%clk 0:00:19.6]} 0-1

[Event "*** Titled Tuesday 3|2 Blitz (Late)"]
[Site "Chess.com"]
[Date "2016.11.01"]
[Round "2"]
[White "Kanthecarowin"]
[Black "SwiftyMcBishop"]
[Result "0-1"]
[WhiteElo "2128"]
[BlackElo "2088"]
[TimeControl "180+2"]
[EndTime "17:21:13 PDT"]
[Termination "SwiftyMcBishop won by resignation"]

1. d4 {[%clk 0:03:02]} 1... d5 {[%clk 0:02:59.7]} 2. c4 {[%clk 0:03:00.7]} 2...
dxc4 {[%clk 0:03:00.6]} 3. Nf3 {[%clk 0:03:01.2]} 3... Nf6 {[%clk 0:03:01.4]} 4.
e3 {[%clk 0:03:02.8]} 4... e6 {[%clk 0:03:02.9]} 5. Bxc4 {[%clk 0:03:03.3]} 5...
a6 {[%clk 0:03:04.5]} 6. a4 {[%clk 0:03:03.3]} 6... c5 {[%clk 0:03:05.6]} 7. Nc3
{[%clk 0:03:04.5]} 7... Nbd7 {[%clk 0:02:58.4]} 8. O-O {[%clk 0:03:04.4]} 8...
Be7 {[%clk 0:02:59.9]} 9. Qe2 {[%clk 0:03:05.3]} 9... O-O {[%clk 0:03:01.3]} 10.
b3 {[%clk 0:03:03.2]} 10... Nb6 {[%clk 0:03:00.5]} 11. Rd1 {[%clk 0:03:02.8]}
11... cxd4 {[%clk 0:02:57.5]} 12. exd4 {[%clk 0:03:02.8]} 12... Nbd5 {[%clk
0:02:58.4]} 13. Nxd5 {[%clk 0:02:56.5]} 13... Nxd5 {[%clk 0:03:00.3]} 14. Bb2
{[%clk 0:02:55.2]} 14... b6 {[%clk 0:03:00.8]} 15. Ne5 {[%clk 0:02:50.8]} 15...
Bb7 {[%clk 0:02:57.5]} 16. g3 {[%clk 0:02:48.8]} 16... Bf6 {[%clk 0:02:27.4]}
17. Rac1 {[%clk 0:02:43.8]} 17... Qd6 {[%clk 0:02:19.3]} 18. f4 {[%clk
0:02:36.4]} 18... Rfd8 {[%clk 0:02:08.7]} 19. Re1 {[%clk 0:02:34.1]} 19... Bxe5
{[%clk 0:01:27.8]} 20. dxe5 {[%clk 0:02:28.1]} 20... Qc5+ {[%clk 0:01:28.2]} 21.
Qf2 {[%clk 0:02:26.2]} 21... Qxf2+ {[%clk 0:01:19.4]} 22. Kxf2 {[%clk
0:02:28.1]} 22... Nb4 {[%clk 0:01:00.4]} 23. Red1 {[%clk 0:02:26.3]} 23... Bd5
{[%clk 0:00:58.8]} 24. Bd4 {[%clk 0:02:21.5]} 24... b5 {[%clk 0:00:48]} 25. axb5
{[%clk 0:02:10.4]} 25... axb5 {[%clk 0:00:47.6]} 26. Bc5 {[%clk 0:01:53.1]}
26... Na2 {[%clk 0:00:29.4]} 27. Rc2 {[%clk 0:01:42.3]} 27... bxc4 {[%clk
0:00:20.8]} 28. bxc4 {[%clk 0:01:44.2]} 28... Bxc4 {[%clk 0:00:14.8]} 29. Rxd8+
{[%clk 0:01:42]} 29... Rxd8 {[%clk 0:00:16.7]} 30. Rxc4 {[%clk 0:01:43.2]} 30...
Rc8 {[%clk 0:00:17.6]} 31. Ra4 {[%clk 0:01:39.6]} 31... Nc3 {[%clk 0:00:16]} 32.
Rc4 {[%clk 0:01:39.3]} 32... Rxc5 {[%clk 0:00:15]} 33. Rd4 {[%clk 0:01:40.5]}
33... Rd5 {[%clk 0:00:15.1]} 34. Rc4 {[%clk 0:01:41.5]} 34... Rc5 {[%clk
0:00:15.5]} 35. Rd4 {[%clk 0:01:40.6]} 35... Nd5 {[%clk 0:00:16.8]} 36. Rd2
{[%clk 0:01:41.8]} 36... h6 {[%clk 0:00:17.5]} 37. Ra2 {[%clk 0:01:43]} 37...
Kh7 {[%clk 0:00:18.4]} 38. Rd2 {[%clk 0:01:42.5]} 38... Rc4 {[%clk 0:00:19.4]}
39. Ra2 {[%clk 0:01:44]} 39... Kg6 {[%clk 0:00:20.7]} 40. Rd2 {[%clk 0:01:45.6]}
40... Rc3 {[%clk 0:00:22]} 41. Ra2 {[%clk 0:01:47]} 41... Nb4 {[%clk 0:00:23.4]}
42. Rd2 {[%clk 0:01:47.9]} 42... Rc2 {[%clk 0:00:24.7]} 43. Rxc2 {[%clk
0:01:49]} 43... Nxc2 {[%clk 0:00:26.6]} 44. Kf3 {[%clk 0:01:50.7]} 44... Nb4
{[%clk 0:00:28.1]} 45. h3 {[%clk 0:01:52.3]} 45... Nd5 {[%clk 0:00:30]} 46. g4
{[%clk 0:01:54.2]} 46... h5 {[%clk 0:00:31.1]} 47. h4 {[%clk 0:01:54.8]} 47...
hxg4+ {[%clk 0:00:31.5]} 48. Kxg4 {[%clk 0:01:56.7]} 48... Ne3+ {[%clk
0:00:32.9]} 49. Kf3 {[%clk 0:01:58]} 49... Nf5 {[%clk 0:00:34.5]} 50. Kg4 {[%clk
0:01:59.8]} 50... Nh6+ {[%clk 0:00:33.7]} 51. Kf3 {[%clk 0:02:00.5]} 51... Kf5
{[%clk 0:00:34.2]} 52. h5 {[%clk 0:02:01.4]} 52... Ng8 {[%clk 0:00:34.8]} 53.
Kg3 {[%clk 0:02:02.5]} 53... Ne7 {[%clk 0:00:34.2]} 54. Kf3 {[%clk 0:01:57]}
54... Nd5 {[%clk 0:00:33.9]} 55. Kg3 {[%clk 0:01:58.5]} 55... Nxf4 {[%clk
0:00:33.6]} 56. Kh4 {[%clk 0:02:00.4]} 56... Kxe5 {[%clk 0:00:32.9]} 57. Kg5
{[%clk 0:01:59.9]} 57... Nxh5 {[%clk 0:00:34.1]} 58. Kxh5 {[%clk 0:02:01]} 58...
Kf5 {[%clk 0:00:35.7]} 59. Kh4 {[%clk 0:02:02.5]} 59... Kf4 {[%clk 0:00:37.1]}
0-1

[Event "*** Titled Tuesday 3|2 Blitz (Late)"]
[Site "Chess.com"]
[Date "2016.11.01"]
[Round "2"]
[White "Evgeny_Levin"]
[Black "GMKrikor"]
[Result "1-0"]
[WhiteElo "2712"]
[BlackElo "2537"]
[TimeControl "180+2"]
[EndTime "17:21:21 PDT"]
[Termination "Evgeny_Levin won by resignation"]

1. d4 {[%clk 0:03:02]} 1... Nf6 {[%clk 0:03:00.8]} 2. c4 {[%clk 0:03:02.2]} 2...
e6 {[%clk 0:03:02.4]} 3. Nf3 {[%clk 0:03:02.7]} 3... d5 {[%clk 0:03:01.7]} 4.
Nc3 {[%clk 0:03:02.5]} 4... Bb4 {[%clk 0:03:03]} 5. Bg5 {[%clk 0:03:03]} 5... h6
{[%clk 0:03:03.7]} 6. Bxf6 {[%clk 0:03:03]} 6... Qxf6 {[%clk 0:03:05]} 7. Qb3
{[%clk 0:03:04.7]} 7... c5 {[%clk 0:02:49.8]} 8. e3 {[%clk 0:03:03.8]} 8... cxd4
{[%clk 0:02:42.4]} 9. Nxd4 {[%clk 0:03:02.9]} 9... Nc6 {[%clk 0:02:35.9]} 10.
cxd5 {[%clk 0:02:51.6]} 10... exd5 {[%clk 0:02:13.2]} 11. Bb5 {[%clk 0:02:45.7]}
11... Bd7 {[%clk 0:01:35.9]} 12. Qxd5 {[%clk 0:02:35.5]} 12... Rd8 {[%clk
0:00:58.8]} 13. Qe4+ {[%clk 0:02:34.9]} 13... Kf8 {[%clk 0:00:26.4]} 14. Rd1
{[%clk 0:02:10]} 14... Nxd4 {[%clk 0:00:17.3]} 15. Qxd4 {[%clk 0:01:57.8]} 15...
Qxd4 {[%clk 0:00:13.4]} 16. Rxd4 {[%clk 0:01:59.7]} 16... Bxc3+ {[%clk
0:00:14.6]} 17. bxc3 {[%clk 0:02:01.4]} 17... Ke7 {[%clk 0:00:16.3]} 18. Bxd7
{[%clk 0:02:00.4]} 18... Rxd7 {[%clk 0:00:17.7]} 19. Kd2 {[%clk 0:02:01.8]}
19... Rc7 {[%clk 0:00:18.9]} 20. Rb1 {[%clk 0:02:01.4]} 20... Rhc8 {[%clk
0:00:20.8]} 21. Rb3 {[%clk 0:01:56.3]} 21... b6 {[%clk 0:00:22.3]} 22. Kd3
{[%clk 0:01:51.3]} 22... Rc5 {[%clk 0:00:21.6]} 23. Ra3 {[%clk 0:01:48.5]} 23...
R8c7 {[%clk 0:00:22.9]} 24. h4 {[%clk 0:01:45.1]} 24... h5 {[%clk 0:00:23.5]}
25. Rb3 {[%clk 0:01:31.8]} 25... g6 {[%clk 0:00:23.8]} 26. a4 {[%clk 0:01:31.6]}
26... Rc8 {[%clk 0:00:16]} 27. c4 {[%clk 0:01:30]} 27... Ra5 {[%clk 0:00:14.5]}
28. Rb4 {[%clk 0:01:30.3]} 28... Rcc5 {[%clk 0:00:12.9]} 29. Kc3 {[%clk
0:01:29.9]} 29... Rf5 {[%clk 0:00:12.7]} 30. f3 {[%clk 0:01:25.5]} 30... Rfe5
{[%clk 0:00:12]} 31. e4 {[%clk 0:01:26.2]} 31... f5 {[%clk 0:00:13.5]} 32. Rb5
{[%clk 0:01:21]} 32... fxe4 {[%clk 0:00:11.5]} 33. Rxe5+ {[%clk 0:01:17.4]}
33... Rxe5 {[%clk 0:00:11.7]} 34. Rxe4 {[%clk 0:01:19.3]} 34... Rxe4 {[%clk
0:00:08.6]} 35. fxe4 {[%clk 0:01:21.2]} 35... Kd6 {[%clk 0:00:04.8]} 36. Kd4
{[%clk 0:01:15.8]} 36... Ke6 {[%clk 0:00:05.9]} 37. e5 {[%clk 0:00:55.9]} 1-0

[Event "*** Titled Tuesday 3|2 Blitz (Late)"]
[Site "Chess.com"]
[Date "2016.11.01"]
[Round "2"]
[White "yurisolo"]
[Black "Zlatan56"]
[Result "1-0"]
[WhiteElo "2535"]
[BlackElo "2643"]
[TimeControl "180+2"]
[EndTime "17:21:22 PDT"]
[Termination "yurisolo won by resignation"]

1. e4 {[%clk 0:03:01.9]} 1... e5 {[%clk 0:02:58.9]} 2. Nf3 {[%clk 0:03:03.2]}
2... Nc6 {[%clk 0:03:00]} 3. Bb5 {[%clk 0:03:04.8]} 3... Nf6 {[%clk 0:03:01.3]}
4. O-O {[%clk 0:03:04.8]} 4... Nxe4 {[%clk 0:03:01.4]} 5. d4 {[%clk 0:03:06.2]}
5... Nd6 {[%clk 0:03:01.9]} 6. Bg5 {[%clk 0:03:05.7]} 6... Be7 {[%clk
0:02:59.2]} 7. Bxe7 {[%clk 0:03:06.8]} 7... Qxe7 {[%clk 0:03:00.6]} 8. Bxc6
{[%clk 0:03:08.5]} 8... dxc6 {[%clk 0:03:01]} 9. dxe5 {[%clk 0:03:10.1]} 9...
Ne4 {[%clk 0:03:01.3]} 10. Qe2 {[%clk 0:03:04.3]} 10... Bf5 {[%clk 0:02:58.5]}
11. Nd4 {[%clk 0:02:51.1]} 11... Bg6 {[%clk 0:02:58.9]} 12. f3 {[%clk
0:02:52.5]} 12... Nc5 {[%clk 0:02:54.6]} 13. Nc3 {[%clk 0:02:47.9]} 13... O-O-O
{[%clk 0:02:46.2]} 14. Rad1 {[%clk 0:02:46.2]} 14... Rhe8 {[%clk 0:02:45.3]} 15.
f4 {[%clk 0:02:45.9]} 15... Ne6 {[%clk 0:02:32.7]} 16. Nxe6 {[%clk 0:02:29]}
16... fxe6 {[%clk 0:02:27.3]} 17. a3 {[%clk 0:02:16.2]} 17... Qc5+ {[%clk
0:02:20.5]} 18. Qf2 {[%clk 0:02:16.3]} 18... Qxf2+ {[%clk 0:02:01.7]} 19. Rxf2
{[%clk 0:02:18.2]} 19... h5 {[%clk 0:01:59.5]} 20. Rfd2 {[%clk 0:02:15.2]} 20...
c5 {[%clk 0:01:53.1]} 21. Kf2 {[%clk 0:01:54.4]} 21... Bf5 {[%clk 0:01:31.1]}
22. Ke3 {[%clk 0:01:54.2]} 22... b6 {[%clk 0:01:31.2]} 23. Rxd8+ {[%clk
0:01:53.9]} 23... Rxd8 {[%clk 0:01:32]} 24. Rxd8+ {[%clk 0:01:55.5]} 24... Kxd8
{[%clk 0:01:33.4]} 25. Ne4 {[%clk 0:01:57.1]} 25... Kd7 {[%clk 0:01:25.5]} 26.
g3 {[%clk 0:01:44.9]} 26... Kc6 {[%clk 0:01:19.1]} 27. c4 {[%clk 0:01:45.8]}
27... a6 {[%clk 0:01:16.5]} 28. Nf2 {[%clk 0:01:42.7]} 28... b5 {[%clk 0:01:14]}
29. h3 {[%clk 0:01:44]} 29... bxc4 {[%clk 0:01:00.6]} 30. g4 {[%clk 0:01:44.8]}
30... hxg4 {[%clk 0:00:48.5]} 31. hxg4 {[%clk 0:01:46.7]} 31... Bg6 {[%clk
0:00:42.4]} 32. Ne4 {[%clk 0:01:47.6]} 32... Kd5 {[%clk 0:00:42.2]} 33. Nc3+
{[%clk 0:01:48.3]} 33... Kc6 {[%clk 0:00:42.6]} 34. Kf3 {[%clk 0:01:46.7]} 34...
Bc2 {[%clk 0:00:34]} 35. Kg3 {[%clk 0:01:47.2]} 35... Kd7 {[%clk 0:00:34.8]} 36.
Kh4 {[%clk 0:01:47.4]} 36... Ke7 {[%clk 0:00:35.6]} 37. Kg5 {[%clk 0:01:48.8]}
37... Kf7 {[%clk 0:00:37]} 38. f5 {[%clk 0:01:39.7]} 38... a5 {[%clk 0:00:35.9]}
39. Nb5 {[%clk 0:01:37.9]} 39... exf5 {[%clk 0:00:31.8]} 40. gxf5 {[%clk
0:01:38.6]} 40... Ke7 {[%clk 0:00:28.9]} 41. Nxc7 {[%clk 0:01:37.2]} 41... Kd7
{[%clk 0:00:29.7]} 42. Na6 {[%clk 0:01:32.6]} 42... Kc6 {[%clk 0:00:27.4]} 43.
f6 {[%clk 0:01:33.4]} 43... gxf6+ {[%clk 0:00:26]} 44. exf6 {[%clk 0:01:35.3]}
44... Kd6 {[%clk 0:00:26]} 45. Nxc5 {[%clk 0:01:34.7]} 45... Bb1 {[%clk
0:00:15.5]} 46. Nb7+ {[%clk 0:01:34]} 46... Kc6 {[%clk 0:00:14.6]} 47. f7 {[%clk
0:01:31.7]} 1-0

[Event "*** Titled Tuesday 3|2 Blitz (Late)"]
[Site "Chess.com"]
[Date "2016.11.01"]
[Round "2"]
[White "pastouche06"]
[Black "Kubas1010"]
[Result "1-0"]
[WhiteElo "2296"]
[BlackElo "2421"]
[TimeControl "180+2"]
[EndTime "17:21:40 PDT"]
[Termination "pastouche06 won by checkmate"]

1. d4 {[%clk 0:03:01.9]} 1... d5 {[%clk 0:02:59.1]} 2. c4 {[%clk 0:03:02.8]}
2... e6 {[%clk 0:02:59.7]} 3. Nc3 {[%clk 0:03:02.9]} 3... Be7 {[%clk 0:03:01.3]}
4. cxd5 {[%clk 0:03:03.2]} 4... exd5 {[%clk 0:03:03.2]} 5. Bf4 {[%clk
0:03:04.3]} 5... c6 {[%clk 0:03:04.2]} 6. e3 {[%clk 0:03:03.7]} 6... Bf5 {[%clk
0:03:05.2]} 7. g4 {[%clk 0:03:02.7]} 7... Be6 {[%clk 0:03:06.2]} 8. h3 {[%clk
0:03:02.9]} 8... Nd7 {[%clk 0:03:06.1]} 9. Bd3 {[%clk 0:02:59.5]} 9... g5 {[%clk
0:03:05.8]} 10. Bg3 {[%clk 0:02:57.9]} 10... h5 {[%clk 0:03:06.3]} 11. gxh5
{[%clk 0:02:45.8]} 11... Ngf6 {[%clk 0:03:05.7]} 12. Be2 {[%clk 0:02:45.8]}
12... Qa5 {[%clk 0:03:03.2]} 13. Bf3 {[%clk 0:02:32.9]} 13... Ne4 {[%clk
0:02:48.8]} 14. Bxe4 {[%clk 0:02:28]} 14... dxe4 {[%clk 0:02:50]} 15. Qc2 {[%clk
0:02:19.6]} 15... f5 {[%clk 0:02:47.4]} 16. Ne2 {[%clk 0:02:05.9]} 16... Rxh5
{[%clk 0:02:46.1]} 17. a3 {[%clk 0:02:03.7]} 17... Nf6 {[%clk 0:02:44]} 18. Be5
{[%clk 0:01:50.4]} 18... Nd5 {[%clk 0:02:43.4]} 19. O-O-O {[%clk 0:01:39.1]}
19... Rc8 {[%clk 0:01:54.1]} 20. Kb1 {[%clk 0:01:28.5]} 20... b5 {[%clk
0:01:53.1]} 21. Nxd5 {[%clk 0:01:04.7]} 21... Bxd5 {[%clk 0:01:36.6]} 22. Ng3
{[%clk 0:01:03.5]} 22... Rh7 {[%clk 0:01:31.7]} 23. Nxf5 {[%clk 0:01:03.2]}
23... b4 {[%clk 0:01:32.8]} 24. Nd6+ {[%clk 0:00:58.7]} 24... Bxd6 {[%clk
0:01:33.1]} 25. Bxd6 {[%clk 0:01:00.6]} 25... bxa3 {[%clk 0:01:33.5]} 26. Bxa3
{[%clk 0:01:01.4]} 26... Rb7 {[%clk 0:01:34.2]} 27. Ka1 {[%clk 0:00:58.1]} 27...
Bb3 {[%clk 0:01:20.1]} 28. Qd2 {[%clk 0:00:59]} 28... Qa4 {[%clk 0:01:08.6]} 29.
d5 {[%clk 0:00:53.1]} 29... Bxd5 {[%clk 0:00:59.8]} 30. Qc3 {[%clk 0:00:52.2]}
30... Rb3 {[%clk 0:00:29.3]} 31. Qe5+ {[%clk 0:00:49.4]} 31... Kf7 {[%clk
0:00:27.4]} 32. Qe7+ {[%clk 0:00:46.5]} 32... Kg6 {[%clk 0:00:27.1]} 33. h4
{[%clk 0:00:48]} 33... Rxa3+ {[%clk 0:00:15.1]} 34. bxa3 {[%clk 0:00:49.9]}
34... g4 {[%clk 0:00:11.5]} 35. h5+ {[%clk 0:00:45.8]} 35... Kf5 {[%clk
0:00:12.7]} 36. h6 {[%clk 0:00:44]} 36... Qb3 {[%clk 0:00:13.1]} 37. Rh5+ {[%clk
0:00:43.9]} 37... Kg6 {[%clk 0:00:12.8]} 38. Rg5+ {[%clk 0:00:44.6]} 38... Kxh6
{[%clk 0:00:13.8]} 39. Qg7# {[%clk 0:00:45.5]} 1-0